[Event "December 19 Late 2023"]
[Site "https://www.chess.com"]
[Date "2023.12.19"]
[Round "3"]
[White "Feliz Dotel, Dewar Bienvenido"]
[Black "Serra Canals, Oriol"]
[Result "1/2-1/2"]
[Board "139"]
[TimeControl "180+1"]
[WhiteFideId "6402801"]
[BlackFideId "22276084"]
[WhiteElo "2069"]
[BlackElo "2108"]
[WhiteTeam "DOM"]
[BlackTeam "ESP"]
[WhiteClock "0:00:04"]
[BlackClock "0:00:05"]

1. Nf3 {[%clk 0:02:59]}  e6 {[%clk 0:03:00]} 2. c4 {[%clk 0:02:57]}  d5 {[%clk 0:03:01]} 3. g3 {[%clk 0:02:57]}  Nf6 {[%clk 0:03:01]} 4. Bg2 {[%clk 0:02:58]}  Be7 {[%clk 0:03:01]} 5. O-O {[%clk 0:02:57]}  O-O {[%clk 0:03:02]} 6. d4 {[%clk 0:02:56]}  dxc4 {[%clk 0:03:00]} 7. Ne5 {[%clk 0:02:56]}  Nc6 {[%clk 0:03:00]} 8. Nxc6 {[%clk 0:02:53]}  bxc6 {[%clk 0:03:01]} 9. Qa4 {[%clk 0:02:53]}  Rb8 {[%clk 0:02:51]} 10. Qxc6 {[%clk 0:02:49]}  Bb7 {[%clk 0:02:48]} 11. Qxc4 {[%clk 0:02:48]}  Bxg2 {[%clk 0:02:49]} 12. Kxg2 {[%clk 0:02:48]}  Rb4 {[%clk 0:02:49]} 13. Qc3 {[%clk 0:02:45]}  Rxd4 {[%clk 0:02:45]} 14. Be3 {[%clk 0:02:44]}  Qd5+ {[%clk 0:02:23]} 15. Kg1 {[%clk 0:02:42]}  Rc4 {[%clk 0:02:23]} 16. Qb3 {[%clk 0:02:38]}  c5 {[%clk 0:02:05]} 17. Nc3 {[%clk 0:02:34]}  Rxc3 {[%clk 0:01:44]} 18. Qxc3 {[%clk 0:02:19]}  Ng4 {[%clk 0:01:34]} 19. Rfd1 {[%clk 0:02:14]}  Qh5 {[%clk 0:01:34]} 20. h4 {[%clk 0:02:08]}  Bxh4 {[%clk 0:01:14]} 21. Kg2 {[%clk 0:01:29]}  Bf6 {[%clk 0:01:10]} 22. Rh1 {[%clk 0:00:16]}  Qxh1+ {[%clk 0:01:07]} 23. Rxh1 {[%clk 0:00:13]}  Bxc3 {[%clk 0:01:07]} 24. bxc3 {[%clk 0:00:13]}  Nxe3+ {[%clk 0:01:06]} 25. fxe3 {[%clk 0:00:13]}  Rd8 {[%clk 0:00:31]} 26. Rb1 {[%clk 0:00:13]}  g6 {[%clk 0:00:31]} 27. Rb7 {[%clk 0:00:13]}  Rd2 {[%clk 0:00:31]} 28. Rxa7 {[%clk 0:00:13]}  Rxe2+ {[%clk 0:00:32]} 29. Kf3 {[%clk 0:00:13]}  Rc2 {[%clk 0:00:31]} 30. a4 {[%clk 0:00:12]}  Rxc3 {[%clk 0:00:29]} 31. a5 {[%clk 0:00:12]}  Ra3 {[%clk 0:00:28]} 32. a6 {[%clk 0:00:12]}  c4 {[%clk 0:00:29]} 33. Ra8+ {[%clk 0:00:11]}  Kg7 {[%clk 0:00:28]} 34. Ke4 {[%clk 0:00:11]}  c3 {[%clk 0:00:22]} 35. Kd3 {[%clk 0:00:11]}  c2+ {[%clk 0:00:23]} 36. Kxc2 {[%clk 0:00:11]}  Rxe3 {[%clk 0:00:23]} 37. Kb2 {[%clk 0:00:11]}  Re5 {[%clk 0:00:22]} 38. a7 {[%clk 0:00:08]}  Ra5 {[%clk 0:00:22]} 39. Kc3 {[%clk 0:00:07]}  Kf6 {[%clk 0:00:21]} 40. Kb4 {[%clk 0:00:07]}  Ra1 {[%clk 0:00:15]} 41. Kb5 {[%clk 0:00:07]}  Kf5 {[%clk 0:00:14]} 42. Kb6 {[%clk 0:00:07]}  e5 {[%clk 0:00:14]} 43. Rf8 {[%clk 0:00:05]}  f6 {[%clk 0:00:11]} 44. a8=Q {[%clk 0:00:04]}  Rxa8 {[%clk 0:00:12]} 45. Rxa8 {[%clk 0:00:02]}  Kg4 {[%clk 0:00:13]} 46. Kc5 {[%clk 0:00:03]}  Kxg3 {[%clk 0:00:12]} 47. Ra7 {[%clk 0:00:03]}  h5 {[%clk 0:00:12]} 48. Rg7 {[%clk 0:00:03]}  g5 {[%clk 0:00:12]} 49. Kd5 {[%clk 0:00:03]}  h4 {[%clk 0:00:12]} 50. Rg6 {[%clk 0:00:04]}  h3 {[%clk 0:00:12]} 51. Rxf6 {[%clk 0:00:04]}  h2 {[%clk 0:00:13]} 52. Rh6 {[%clk 0:00:04]}  g4 {[%clk 0:00:11]} 53. Kxe5 {[%clk 0:00:05]}  Kg2 {[%clk 0:00:10]} 54. Kf4 {[%clk 0:00:05]}  g3 {[%clk 0:00:11]} 55. Rh4 {[%clk 0:00:04]}  Kf2 {[%clk 0:00:08]} 56. Rh3 {[%clk 0:00:03]}  Kg2 {[%clk 0:00:07]} 57. Rh4 {[%clk 0:00:04]}  h1=R {[%clk 0:00:04]} 58. Rxh1 {[%clk 0:00:04]}  Kxh1 {[%clk 0:00:05]} 59. Kxg3 {[%clk 0:00:04]} 1/2-1/2

[Event "December 19 Late 2023"]
[Site "https://www.chess.com"]
[Date "2023.12.19"]
[Round "3"]
[White "Lutz, Igor Oscar"]
[Black "Skibbe, Willi"]
[Result "0-1"]
[Board "142"]
[TimeControl "180+1"]
[WhiteFideId "2110806"]
[BlackFideId "4682190"]
[WhiteElo "2087"]
[BlackElo "2369"]
[WhiteTeam "BRA"]
[BlackTeam "GER"]
[WhiteClock "0:00:01"]
[BlackClock "0:01:34"]

1. d4 {[%clk 0:03:00]}  d5 {[%clk 0:02:55]} 2. c4 {[%clk 0:03:00]}  c6 {[%clk 0:02:56]} 3. Nf3 {[%clk 0:03:01]}  Nf6 {[%clk 0:02:55]} 4. g3 {[%clk 0:03:00]}  dxc4 {[%clk 0:02:55]} 5. Bg2 {[%clk 0:02:59]}  b5 {[%clk 0:02:53]} 6. O-O {[%clk 0:02:56]}  Bb7 {[%clk 0:02:53]} 7. Ne5 {[%clk 0:02:56]}  e6 {[%clk 0:02:52]} 8. a4 {[%clk 0:02:56]}  Nd5 {[%clk 0:02:51]} 9. e3 {[%clk 0:02:41]}  Nd7 {[%clk 0:02:50]} 10. Nxd7 {[%clk 0:02:29]}  Qxd7 {[%clk 0:02:48]} 11. e4 {[%clk 0:02:30]}  Nf6 {[%clk 0:02:44]} 12. e5 {[%clk 0:02:24]}  Nd5 {[%clk 0:02:43]} 13. Nc3 {[%clk 0:02:20]}  Nxc3 {[%clk 0:02:36]} 14. bxc3 {[%clk 0:02:19]}  Be7 {[%clk 0:02:36]} 15. Qg4 {[%clk 0:02:13]}  Kf8 {[%clk 0:02:30]} 16. Be3 {[%clk 0:01:41]}  h5 {[%clk 0:02:25]} 17. Qe4 {[%clk 0:01:33]}  a6 {[%clk 0:02:21]} 18. axb5 {[%clk 0:01:27]}  axb5 {[%clk 0:02:21]} 19. Rxa8+ {[%clk 0:01:28]}  Bxa8 {[%clk 0:02:22]} 20. Ra1 {[%clk 0:01:27]}  Qb7 {[%clk 0:02:21]} 21. Qb1 {[%clk 0:00:57]}  g6 {[%clk 0:02:19]} 22. d5 {[%clk 0:00:21]}  cxd5 {[%clk 0:02:14]} 23. Ra7 {[%clk 0:00:20]}  Qc6 {[%clk 0:02:10]} 24. Qa2 {[%clk 0:00:12]}  Bb7 {[%clk 0:02:06]} 25. Qa5 {[%clk 0:00:07]}  Kg7 {[%clk 0:02:05]} 26. h4 {[%clk 0:00:06]}  Ra8 {[%clk 0:02:01]} 27. Rxa8 {[%clk 0:00:06]}  Bxa8 {[%clk 0:02:01]} 28. Qa7 {[%clk 0:00:06]}  Qb7 {[%clk 0:01:58]} 29. Qd4 {[%clk 0:00:06]}  b4 {[%clk 0:01:56]} 30. cxb4 {[%clk 0:00:06]}  Qxb4 {[%clk 0:01:56]} 31. Bd2 {[%clk 0:00:06]}  Qb1+ {[%clk 0:01:55]} 32. Kh2 {[%clk 0:00:06]}  Bc6 {[%clk 0:01:50]} 33. Bc3 {[%clk 0:00:06]}  Qd3 {[%clk 0:01:39]} 34. Qa7 {[%clk 0:00:02]}  Qxc3 {[%clk 0:01:36]} 35. Qxe7 {[%clk 0:00:02]}  Qxe5 {[%clk 0:01:34]} 36. Qe8 {[%clk 0:00:01]} 0-1

[Event "December 19 Late 2023"]
[Site "https://www.chess.com"]
[Date "2023.12.19"]
[Round "3"]
[White "Golubenko, Valentina"]
[Black "Martinez Ramirez, Lennis"]
[Result "0-1"]
[Board "143"]
[TimeControl "180+1"]
[WhiteFideId "4501993"]
[BlackFideId "3509079"]
[WhiteElo "2126"]
[BlackElo "2405"]
[WhiteTeam "CRO"]
[BlackTeam "CUB"]
[WhiteClock "0:00:10"]
[BlackClock "0:00:25"]

1. d4 {[%clk 0:03:00]}  d5 {[%clk 0:02:59]} 2. c4 {[%clk 0:03:00]}  e6 {[%clk 0:02:59]} 3. Nf3 {[%clk 0:02:58]}  Nf6 {[%clk 0:02:59]} 4. e3 {[%clk 0:02:59]}  c5 {[%clk 0:02:58]} 5. cxd5 {[%clk 0:02:58]}  exd5 {[%clk 0:02:57]} 6. Nc3 {[%clk 0:02:58]}  Nc6 {[%clk 0:02:57]} 7. Be2 {[%clk 0:02:58]}  cxd4 {[%clk 0:02:54]} 8. Nxd4 {[%clk 0:02:52]}  Bd6 {[%clk 0:02:55]} 9. O-O {[%clk 0:02:36]}  O-O {[%clk 0:02:54]} 10. Ncb5 {[%clk 0:02:12]}  Bb8 {[%clk 0:02:48]} 11. Nxc6 {[%clk 0:02:12]}  bxc6 {[%clk 0:02:47]} 12. Nd4 {[%clk 0:02:12]}  Qd6 {[%clk 0:02:47]} 13. f4 {[%clk 0:01:54]}  c5 {[%clk 0:02:40]} 14. Nf3 {[%clk 0:01:54]}  Bc7 {[%clk 0:02:15]} 15. b3 {[%clk 0:01:49]}  Re8 {[%clk 0:02:10]} 16. Ne5 {[%clk 0:01:40]}  Qb6 {[%clk 0:02:07]} 17. Bb2 {[%clk 0:01:35]}  Bf5 {[%clk 0:02:06]} 18. Rc1 {[%clk 0:01:18]}  Rad8 {[%clk 0:02:05]} 19. Qe1 {[%clk 0:00:59]}  Nd7 {[%clk 0:01:52]} 20. Nxd7 {[%clk 0:00:54]}  Rxd7 {[%clk 0:01:53]} 21. Qg3 {[%clk 0:00:54]}  f6 {[%clk 0:01:49]} 22. Bf3 {[%clk 0:00:50]}  Be4 {[%clk 0:01:42]} 23. Bg4 {[%clk 0:00:48]}  Rde7 {[%clk 0:01:41]} 24. Rfd1 {[%clk 0:00:44]}  Bd6 {[%clk 0:01:37]} 25. Bf3 {[%clk 0:00:39]}  c4 {[%clk 0:00:40]} 26. Bxf6 {[%clk 0:00:27]}  Qxe3+ {[%clk 0:00:35]} 27. Kh1 {[%clk 0:00:26]}  Bxf4 {[%clk 0:00:34]} 28. Qg4 {[%clk 0:00:16]}  h5 {[%clk 0:00:28]} 29. Qxh5 {[%clk 0:00:15]}  Bxf3 {[%clk 0:00:29]} 30. gxf3 {[%clk 0:00:15]}  gxf6 {[%clk 0:00:27]} 31. Rg1+ {[%clk 0:00:15]}  Bg5 {[%clk 0:00:26]} 32. Qg6+ {[%clk 0:00:12]}  Rg7 {[%clk 0:00:26]} 33. Qh5 {[%clk 0:00:12]}  Rh7 {[%clk 0:00:26]} 34. Qg6+ {[%clk 0:00:12]}  Kh8 {[%clk 0:00:26]} 35. Rce1 {[%clk 0:00:10]}  Qxf3+ {[%clk 0:00:25]} 36. Rg2 {[%clk 0:00:10]}  Rxe1# {[%clk 0:00:25]} 0-1

[Event "December 19 Late 2023"]
[Site "https://www.chess.com"]
[Date "2023.12.19"]
[Round "3"]
[White "Cattaneo, Marco"]
[Black "Khokhlova, Daria"]
[Result "1-0"]
[Board "145"]
[TimeControl "180+1"]
[WhiteFideId "878332"]
[BlackFideId "24182729"]
[WhiteElo "2186"]
[BlackElo "2032"]
[WhiteTeam "ITA"]
[BlackTeam "FID"]
[WhiteClock "0:00:15"]
[BlackClock "0:00:04"]

1. e4 {[%clk 0:03:00]}  c5 {[%clk 0:02:59]} 2. d3 {[%clk 0:03:01]}  Nc6 {[%clk 0:02:59]} 3. g3 {[%clk 0:03:01]}  g6 {[%clk 0:02:59]} 4. Bg2 {[%clk 0:03:01]}  Bg7 {[%clk 0:02:59]} 5. f4 {[%clk 0:03:02]}  d6 {[%clk 0:02:58]} 6. Nf3 {[%clk 0:03:02]}  Bg4 {[%clk 0:02:58]} 7. h3 {[%clk 0:03:02]}  Bxf3 {[%clk 0:02:57]} 8. Qxf3 {[%clk 0:03:03]}  Nd4 {[%clk 0:02:55]} 9. Qf2 {[%clk 0:03:03]}  e6 {[%clk 0:02:55]} 10. c3 {[%clk 0:02:59]}  Nc6 {[%clk 0:02:55]} 11. O-O {[%clk 0:03:00]}  Nge7 {[%clk 0:02:55]} 12. Na3 {[%clk 0:02:56]}  O-O {[%clk 0:02:54]} 13. Be3 {[%clk 0:02:55]}  Rb8 {[%clk 0:02:49]} 14. Nc2 {[%clk 0:02:52]}  b5 {[%clk 0:02:48]} 15. d4 {[%clk 0:02:40]}  cxd4 {[%clk 0:02:46]} 16. cxd4 {[%clk 0:02:27]}  d5 {[%clk 0:02:47]} 17. e5 {[%clk 0:02:27]}  Nf5 {[%clk 0:02:44]} 18. Rfc1 {[%clk 0:02:19]}  Re8 {[%clk 0:02:38]} 19. Bf1 {[%clk 0:02:13]}  Qb6 {[%clk 0:02:27]} 20. Rd1 {[%clk 0:02:03]}  Rec8 {[%clk 0:02:25]} 21. Bc1 {[%clk 0:01:54]}  Na5 {[%clk 0:02:17]} 22. g4 {[%clk 0:01:47]}  Ne7 {[%clk 0:02:01]} 23. b3 {[%clk 0:01:42]}  Qc7 {[%clk 0:01:48]} 24. Bd3 {[%clk 0:01:36]}  f6 {[%clk 0:01:35]} 25. Bd2 {[%clk 0:01:30]}  Nac6 {[%clk 0:01:34]} 26. Rac1 {[%clk 0:01:27]}  Qb6 {[%clk 0:01:32]} 27. Rf1 {[%clk 0:01:17]}  Rf8 {[%clk 0:01:27]} 28. Qe3 {[%clk 0:01:15]}  fxe5 {[%clk 0:01:21]} 29. fxe5 {[%clk 0:01:16]}  Rxf1+ {[%clk 0:01:18]} 30. Rxf1 {[%clk 0:01:17]}  Rf8 {[%clk 0:01:18]} 31. Rxf8+ {[%clk 0:01:16]}  Bxf8 {[%clk 0:01:19]} 32. Kg2 {[%clk 0:01:14]}  a5 {[%clk 0:01:15]} 33. Be1 {[%clk 0:01:08]}  Nc8 {[%clk 0:01:09]} 34. Bh4 {[%clk 0:01:05]}  a4 {[%clk 0:01:02]} 35. Bf6 {[%clk 0:01:04]}  axb3 {[%clk 0:01:01]} 36. axb3 {[%clk 0:01:03]}  Na5 {[%clk 0:00:57]} 37. h4 {[%clk 0:00:59]}  Qc6 {[%clk 0:00:47]} 38. b4 {[%clk 0:00:49]}  Nc4 {[%clk 0:00:46]} 39. Qe2 {[%clk 0:00:49]}  N8b6 {[%clk 0:00:39]} 40. h5 {[%clk 0:00:49]}  Qe8 {[%clk 0:00:38]} 41. hxg6 {[%clk 0:00:49]}  hxg6 {[%clk 0:00:39]} 42. Qf3 {[%clk 0:00:37]}  Qf7 {[%clk 0:00:28]} 43. Qh3 {[%clk 0:00:26]}  Bg7 {[%clk 0:00:23]} 44. g5 {[%clk 0:00:26]}  Nd7 {[%clk 0:00:20]} 45. Be2 {[%clk 0:00:22]}  Nf8 {[%clk 0:00:20]} 46. Bg4 {[%clk 0:00:21]}  Qd7 {[%clk 0:00:16]} 47. Ne1 {[%clk 0:00:20]}  Nd2 {[%clk 0:00:15]} 48. Nd3 {[%clk 0:00:20]}  Ne4 {[%clk 0:00:15]} 49. Nc5 {[%clk 0:00:18]}  Nxc5 {[%clk 0:00:14]} 50. bxc5 {[%clk 0:00:18]}  b4 {[%clk 0:00:14]} 51. Qb3 {[%clk 0:00:18]}  Qb5 {[%clk 0:00:14]} 52. Kf2 {[%clk 0:00:18]}  Qc4 {[%clk 0:00:13]} 53. Qxc4 {[%clk 0:00:17]}  dxc4 {[%clk 0:00:14]} 54. c6 {[%clk 0:00:18]}  b3 {[%clk 0:00:13]} 55. Bd1 {[%clk 0:00:16]}  b2 {[%clk 0:00:09]} 56. Bc2 {[%clk 0:00:16]}  Kf7 {[%clk 0:00:09]} 57. c7 {[%clk 0:00:16]}  Bxf6 {[%clk 0:00:07]} 58. gxf6 {[%clk 0:00:17]}  Nd7 {[%clk 0:00:07]} 59. c8=Q {[%clk 0:00:16]}  Nf8 {[%clk 0:00:07]} 60. Qxc4 {[%clk 0:00:16]}  g5 {[%clk 0:00:04]} 61. Qc7+ {[%clk 0:00:15]} 1-0

[Event "December 19 Late 2023"]
[Site "https://www.chess.com"]
[Date "2023.12.19"]
[Round "3"]
[White "Romero Ruscalleda, Josep"]
[Black "Kotlyar, Kirill"]
[Result "0-1"]
[Board "146"]
[TimeControl "180+1"]
[WhiteFideId "2231859"]
[BlackFideId "24145599"]
[WhiteElo "2200"]
[BlackElo "2397"]
[WhiteTeam "ESP"]
[BlackTeam "RUS"]
[WhiteClock "0:01:35"]
[BlackClock "0:02:19"]

1. e4 {[%clk 0:03:00]}  e5 {[%clk 0:02:58]} 2. Nf3 {[%clk 0:03:00]}  Nc6 {[%clk 0:02:58]} 3. Bc4 {[%clk 0:03:00]}  Nf6 {[%clk 0:02:58]} 4. Nc3 {[%clk 0:02:59]}  Nxe4 {[%clk 0:02:57]} 5. Bxf7+ {[%clk 0:02:57]}  Kxf7 {[%clk 0:02:56]} 6. Nxe4 {[%clk 0:02:57]}  d5 {[%clk 0:02:57]} 7. Ng3 {[%clk 0:02:47]}  Bd6 {[%clk 0:02:55]} 8. d3 {[%clk 0:02:46]}  Rf8 {[%clk 0:02:53]} 9. O-O {[%clk 0:02:45]}  Kg8 {[%clk 0:02:54]} 10. Bg5 {[%clk 0:02:42]}  Qe8 {[%clk 0:02:52]} 11. Re1 {[%clk 0:02:36]}  Bg4 {[%clk 0:02:51]} 12. c4 {[%clk 0:02:21]}  Qg6 {[%clk 0:02:38]} 13. cxd5 {[%clk 0:02:18]}  Nd4 {[%clk 0:02:38]} 14. Be3 {[%clk 0:02:15]}  Bxf3 {[%clk 0:02:33]} 15. gxf3 {[%clk 0:02:15]}  Nxf3+ {[%clk 0:02:34]} 16. Kg2 {[%clk 0:02:14]}  Nxe1+ {[%clk 0:02:33]} 17. Qxe1 {[%clk 0:02:14]}  Qxd3 {[%clk 0:02:31]} 18. Rd1 {[%clk 0:02:10]}  Qg6 {[%clk 0:02:29]} 19. Qc3 {[%clk 0:02:07]}  Qf7 {[%clk 0:02:25]} 20. Kg1 {[%clk 0:02:01]}  h5 {[%clk 0:02:22]} 21. Qb3 {[%clk 0:01:51]}  Qf3 {[%clk 0:02:20]} 22. Rc1 {[%clk 0:01:40]}  h4 {[%clk 0:02:20]} 23. Nf1 {[%clk 0:01:35]}  h3 {[%clk 0:02:19]} 0-1

[Event "December 19 Late 2023"]
[Site "https://www.chess.com"]
[Date "2023.12.19"]
[Round "3"]
[White "De Souza, Cristiano Gomes"]
[Black "Hasanagic, Anel"]
[Result "0-1"]
[Board "149"]
[TimeControl "180+1"]
[WhiteFideId "2151758"]
[BlackFideId "14605791"]
[WhiteElo "2068"]
[BlackElo "2209"]
[WhiteTeam "BRA"]
[BlackTeam "SLO"]
[WhiteClock "0:00:01"]
[BlackClock "0:00:19"]

1. d4 {[%clk 0:02:59]}  f5 {[%clk 0:02:57]} 2. Nf3 {[%clk 0:02:58]}  Nf6 {[%clk 0:02:49]} 3. c4 {[%clk 0:02:57]}  d6 {[%clk 0:02:48]} 4. Nc3 {[%clk 0:02:55]}  g6 {[%clk 0:02:48]} 5. g3 {[%clk 0:02:56]}  Bg7 {[%clk 0:02:48]} 6. Bg2 {[%clk 0:02:56]}  O-O {[%clk 0:02:49]} 7. O-O {[%clk 0:02:56]}  c6 {[%clk 0:02:50]} 8. b3 {[%clk 0:02:56]}  Na6 {[%clk 0:02:48]} 9. Ba3 {[%clk 0:02:54]}  h6 {[%clk 0:02:46]} 10. Qc2 {[%clk 0:02:50]}  g5 {[%clk 0:02:44]} 11. Rad1 {[%clk 0:02:49]}  Bd7 {[%clk 0:02:30]} 12. Rfe1 {[%clk 0:02:38]}  Rf7 {[%clk 0:02:28]} 13. e4 {[%clk 0:02:36]}  fxe4 {[%clk 0:02:29]} 14. Nxe4 {[%clk 0:02:35]}  Nxe4 {[%clk 0:02:30]} 15. Qxe4 {[%clk 0:02:35]}  Bf5 {[%clk 0:02:31]} 16. Qe3 {[%clk 0:02:31]}  Qd7 {[%clk 0:02:31]} 17. d5 {[%clk 0:02:25]}  c5 {[%clk 0:02:31]} 18. Nd2 {[%clk 0:02:23]}  Raf8 {[%clk 0:02:17]} 19. Ne4 {[%clk 0:02:20]}  Bg4 {[%clk 0:02:15]} 20. Rd2 {[%clk 0:02:12]}  Nc7 {[%clk 0:02:10]} 21. Bb2 {[%clk 0:02:08]}  Ne8 {[%clk 0:01:56]} 22. Bxg7 {[%clk 0:02:06]}  Nxg7 {[%clk 0:01:56]} 23. Nc3 {[%clk 0:02:01]}  Nf5 {[%clk 0:01:53]} 24. Qe6 {[%clk 0:01:58]}  Nd4 {[%clk 0:01:46]} 25. Qxd7 {[%clk 0:01:57]}  Bxd7 {[%clk 0:01:45]} 26. Ne2 {[%clk 0:01:46]}  Nf5 {[%clk 0:01:34]} 27. Bh3 {[%clk 0:01:44]}  h5 {[%clk 0:01:31]} 28. Bxf5 {[%clk 0:01:44]}  Bxf5 {[%clk 0:01:32]} 29. Nc3 {[%clk 0:01:42]}  Bg4 {[%clk 0:01:29]} 30. Ne4 {[%clk 0:01:41]}  Rg7 {[%clk 0:01:27]} 31. Re3 {[%clk 0:01:36]}  Bf3 {[%clk 0:01:25]} 32. Rdd3 {[%clk 0:01:30]}  Bg4 {[%clk 0:01:23]} 33. Nd2 {[%clk 0:01:28]}  Kf7 {[%clk 0:01:14]} 34. f3 {[%clk 0:01:23]}  Bf5 {[%clk 0:01:14]} 35. Ne4 {[%clk 0:01:22]}  Kg6 {[%clk 0:01:10]} 36. Rd2 {[%clk 0:01:20]}  g4 {[%clk 0:01:06]} 37. fxg4 {[%clk 0:01:19]}  Bxg4 {[%clk 0:01:07]} 38. Nf2 {[%clk 0:01:19]}  Bf5 {[%clk 0:01:02]} 39. Rde2 {[%clk 0:01:18]}  Rff7 {[%clk 0:01:02]} 40. Nd3 {[%clk 0:01:15]}  h4 {[%clk 0:00:59]} 41. Nf4+ {[%clk 0:01:14]}  Kh7 {[%clk 0:00:54]} 42. Kf2 {[%clk 0:01:13]}  Bg4 {[%clk 0:00:52]} 43. Re1 {[%clk 0:01:07]}  Kg8 {[%clk 0:00:52]} 44. Re4 {[%clk 0:01:01]}  Bf5 {[%clk 0:00:49]} 45. R4e3 {[%clk 0:01:01]}  Kf8 {[%clk 0:00:47]} 46. Kg2 {[%clk 0:00:59]}  hxg3 {[%clk 0:00:46]} 47. Rxg3 {[%clk 0:00:54]}  Ke8 {[%clk 0:00:42]} 48. Rxg7 {[%clk 0:00:52]}  Rxg7+ {[%clk 0:00:43]} 49. Kf2 {[%clk 0:00:51]}  Kd7 {[%clk 0:00:42]} 50. Rg1 {[%clk 0:00:49]}  Rh7 {[%clk 0:00:41]} 51. Rg2 {[%clk 0:00:46]}  a6 {[%clk 0:00:38]} 52. Ke3 {[%clk 0:00:46]}  b5 {[%clk 0:00:37]} 53. Rf2 {[%clk 0:00:41]}  Rh4 {[%clk 0:00:30]} 54. a4 {[%clk 0:00:39]}  bxc4 {[%clk 0:00:28]} 55. bxc4 {[%clk 0:00:39]}  e5 {[%clk 0:00:28]} 56. dxe6+ {[%clk 0:00:38]}  Bxe6 {[%clk 0:00:29]} 57. Rb2 {[%clk 0:00:33]}  Bxc4 {[%clk 0:00:27]} 58. Rb7+ {[%clk 0:00:29]}  Kc6 {[%clk 0:00:26]} 59. Re7 {[%clk 0:00:19]}  Rxh2 {[%clk 0:00:22]} 60. Kf3 {[%clk 0:00:11]}  Rh1 {[%clk 0:00:20]} 61. Ne6 {[%clk 0:00:07]}  Bxe6 {[%clk 0:00:19]} 62. Rxe6 {[%clk 0:00:01]}  Rh4 {[%clk 0:00:19]} 0-1

[Event "December 19 Late 2023"]
[Site "https://www.chess.com"]
[Date "2023.12.19"]
[Round "3"]
[White "Urbina Perez, Juan Antonio"]
[Black "Grapsa, Georgia"]
[Result "0-1"]
[Board "150"]
[TimeControl "180+1"]
[WhiteFideId "2217368"]
[BlackFideId "4206436"]
[WhiteElo "2185"]
[BlackElo "1794"]
[WhiteTeam "ESP"]
[BlackTeam "GRE"]
[WhiteClock "0:00:28"]
[BlackClock "0:01:04"]

1. e4 {[%clk 0:02:57]}  d5 {[%clk 0:03:00]} 2. exd5 {[%clk 0:02:57]}  Qxd5 {[%clk 0:03:01]} 3. Nc3 {[%clk 0:02:56]}  Qa5 {[%clk 0:03:01]} 4. d4 {[%clk 0:02:57]}  Nf6 {[%clk 0:03:02]} 5. Nf3 {[%clk 0:02:57]}  c6 {[%clk 0:03:02]} 6. Bc4 {[%clk 0:02:47]}  Bf5 {[%clk 0:03:01]} 7. Ne5 {[%clk 0:02:43]}  e6 {[%clk 0:03:01]} 8. g4 {[%clk 0:02:43]}  Bg6 {[%clk 0:03:02]} 9. h4 {[%clk 0:02:42]}  Nbd7 {[%clk 0:03:02]} 10. Nxd7 {[%clk 0:02:34]}  Kxd7 {[%clk 0:03:03]} 11. f3 {[%clk 0:02:25]}  h5 {[%clk 0:02:58]} 12. g5 {[%clk 0:02:21]}  Nd5 {[%clk 0:02:58]} 13. Bd2 {[%clk 0:02:21]}  Bb4 {[%clk 0:02:56]} 14. Nxd5 {[%clk 0:02:12]}  exd5 {[%clk 0:02:50]} 15. Be2 {[%clk 0:02:08]}  Rhe8 {[%clk 0:02:45]} 16. c3 {[%clk 0:02:07]}  Bd6 {[%clk 0:02:44]} 17. Kf2 {[%clk 0:02:06]}  Qc7 {[%clk 0:02:43]} 18. Kg2 {[%clk 0:02:00]}  f6 {[%clk 0:02:40]} 19. Qf1 {[%clk 0:01:55]}  Bf4 {[%clk 0:02:37]} 20. Be1 {[%clk 0:01:27]}  fxg5 {[%clk 0:02:30]} 21. Bd3 {[%clk 0:01:27]}  Bxd3 {[%clk 0:02:13]} 22. Qxd3 {[%clk 0:01:28]}  Qd6 {[%clk 0:02:14]} 23. hxg5 {[%clk 0:01:25]}  g6 {[%clk 0:02:06]} 24. Bh4 {[%clk 0:01:16]}  Re3 {[%clk 0:02:01]} 25. Qc2 {[%clk 0:01:14]}  Rae8 {[%clk 0:01:59]} 26. Rae1 {[%clk 0:01:12]}  Rxe1 {[%clk 0:01:51]} 27. Rxe1 {[%clk 0:01:13]}  Rxe1 {[%clk 0:01:51]} 28. Bxe1 {[%clk 0:01:14]}  Bxg5 {[%clk 0:01:51]} 29. Bg3 {[%clk 0:01:14]}  Qe6 {[%clk 0:01:46]} 30. Qd3 {[%clk 0:01:10]}  h4 {[%clk 0:01:41]} 31. Be5 {[%clk 0:01:08]}  Qf5 {[%clk 0:01:37]} 32. Qe2 {[%clk 0:01:00]}  Bf4 {[%clk 0:01:31]} 33. Qe1 {[%clk 0:00:52]}  Bxe5 {[%clk 0:01:28]} 34. dxe5 {[%clk 0:00:52]}  g5 {[%clk 0:01:26]} 35. Qe3 {[%clk 0:00:49]}  b6 {[%clk 0:01:23]} 36. b4 {[%clk 0:00:45]}  Ke6 {[%clk 0:01:21]} 37. b5 {[%clk 0:00:38]}  c5 {[%clk 0:01:17]} 38. c4 {[%clk 0:00:33]}  d4 {[%clk 0:01:12]} 39. Qd2 {[%clk 0:00:32]}  Qxe5 {[%clk 0:01:11]} 40. Kh1 {[%clk 0:00:32]}  Qe3 {[%clk 0:01:09]} 41. Qg2 {[%clk 0:00:30]}  Qe1+ {[%clk 0:01:04]} 42. Kh2 {[%clk 0:00:28]}  Qg3+ {[%clk 0:01:04]} 0-1

[Event "December 19 Late 2023"]
[Site "https://www.chess.com"]
[Date "2023.12.19"]
[Round "3"]
[White "Kepeshchuk, Mykhaylo"]
[Black "Vila Dupla, Aurelio"]
[Result "1-0"]
[Board "151"]
[TimeControl "180+1"]
[WhiteFideId "14113139"]
[BlackFideId "2203383"]
[WhiteElo "2279"]
[BlackElo "2009"]
[WhiteTeam "UKR"]
[BlackTeam "ESP"]
[WhiteClock "0:00:09"]
[BlackClock "0:00:00"]

1. d4 {[%clk 0:02:55]}  Nf6 {[%clk 0:02:59]} 2. c4 {[%clk 0:02:56]}  g6 {[%clk 0:02:59]} 3. Nc3 {[%clk 0:02:56]}  d5 {[%clk 0:02:58]} 4. cxd5 {[%clk 0:02:57]}  Nxd5 {[%clk 0:02:58]} 5. e4 {[%clk 0:02:57]}  Nxc3 {[%clk 0:02:58]} 6. bxc3 {[%clk 0:02:58]}  Bg7 {[%clk 0:02:58]} 7. Bc4 {[%clk 0:02:59]}  O-O {[%clk 0:02:58]} 8. Ne2 {[%clk 0:03:00]}  c5 {[%clk 0:02:57]} 9. Be3 {[%clk 0:03:01]}  Nc6 {[%clk 0:02:57]} 10. h4 {[%clk 0:03:00]}  cxd4 {[%clk 0:02:55]} 11. cxd4 {[%clk 0:03:00]}  Qa5+ {[%clk 0:02:52]} 12. Kf1 {[%clk 0:03:00]}  Bg4 {[%clk 0:02:45]} 13. f3 {[%clk 0:03:00]}  Bd7 {[%clk 0:02:41]} 14. h5 {[%clk 0:02:56]}  Qa3 {[%clk 0:02:41]} 15. Kf2 {[%clk 0:02:55]}  Na5 {[%clk 0:02:31]} 16. Bd3 {[%clk 0:02:48]}  Rac8 {[%clk 0:02:19]} 17. hxg6 {[%clk 0:02:30]}  hxg6 {[%clk 0:02:18]} 18. Qg1 {[%clk 0:02:23]}  Qxd3 {[%clk 0:02:05]} 19. Qh2 {[%clk 0:02:22]}  f6 {[%clk 0:00:54]} 20. Qh7+ {[%clk 0:02:21]}  Kf7 {[%clk 0:00:53]} 21. Rh6 {[%clk 0:02:19]}  Bf5 {[%clk 0:00:44]} 22. exf5 {[%clk 0:02:07]}  Qxf5 {[%clk 0:00:44]} 23. g4 {[%clk 0:01:18]}  Qd3 {[%clk 0:00:37]} 24. Nf4 {[%clk 0:00:48]}  Qc2+ {[%clk 0:00:36]} 25. Kg3 {[%clk 0:00:45]}  Rh8 {[%clk 0:00:25]} 26. Qxg6+ {[%clk 0:00:44]}  Qxg6 {[%clk 0:00:24]} 27. Rxg6 {[%clk 0:00:45]}  e5 {[%clk 0:00:21]} 28. dxe5 {[%clk 0:00:46]}  fxe5 {[%clk 0:00:20]} 29. Rxg7+ {[%clk 0:00:46]}  Kxg7 {[%clk 0:00:21]} 30. Nh5+ {[%clk 0:00:45]}  Kf7 {[%clk 0:00:19]} 31. Bxa7 {[%clk 0:00:40]}  Nc4 {[%clk 0:00:13]} 32. Rb1 {[%clk 0:00:34]}  Rc7 {[%clk 0:00:11]} 33. Bf2 {[%clk 0:00:23]}  Rd8 {[%clk 0:00:08]} 34. a4 {[%clk 0:00:16]}  Rd3 {[%clk 0:00:07]} 35. Rb5 {[%clk 0:00:10]}  Nd2 {[%clk 0:00:02]} 36. Rxe5 {[%clk 0:00:09]}  Rxf3+ {[%clk 0:00:02]} 37. Kg2 {[%clk 0:00:09]}  Rd3 {[%clk 0:00:01]} 38. Rf5+ {[%clk 0:00:09]}  Kg6 {[%clk 0:00:00]} 39. Nf4+ {[%clk 0:00:09]} 1-0